[Event "Titled Tuesday Blitz November 08 Early 2022"]
[White "Gulevich, Artem"]
[Black "Yuan, Qingyu"]
[WhiteFideId "24119580"]
[BlackFideId "8609772"]
[WhiteElo "2218"]
[BlackElo "2359"]
[Result "1/2-1/2"]
[Round "02"]
[TimeControl "180+1"]
[Date "2022.11.09"]
[WhiteClock "0:00:18"]
[BlackClock "0:00:02"]

1. Nf3 {[%clk 0:02:59]}  d5 {[%clk 0:03:00]} 2. b3 {[%clk 0:02:59]}  c5 {[%clk 0:03:00]} 3. Bb2 {[%clk 0:02:59]}  f6 {[%clk 0:03:00]} 4. d4 {[%clk 0:02:59]}  cxd4 {[%clk 0:03:00]} 5. Nxd4 {[%clk 0:03:00]}  e5 {[%clk 0:03:00]} 6. Nf3 {[%clk 0:03:00]}  Be6 {[%clk 0:03:00]} 7. e3 {[%clk 0:03:01]}  Nc6 {[%clk 0:02:59]} 8. Be2 {[%clk 0:03:01]}  Bd6 {[%clk 0:02:56]} 9. Nbd2 {[%clk 0:03:01]}  Nge7 {[%clk 0:02:53]} 10. O-O {[%clk 0:03:00]}  O-O {[%clk 0:02:52]} 11. c4 {[%clk 0:03:00]}  Rc8 {[%clk 0:02:51]} 12. Rc1 {[%clk 0:02:59]}  Kh8 {[%clk 0:02:47]} 13. a3 {[%clk 0:02:55]}  a5 {[%clk 0:02:44]} 14. cxd5 {[%clk 0:02:50]}  Nxd5 {[%clk 0:02:44]} 15. Ne4 {[%clk 0:02:48]}  Be7 {[%clk 0:02:39]} 16. Nc5 {[%clk 0:02:47]}  Bxc5 {[%clk 0:02:36]} 17. Rxc5 {[%clk 0:02:48]}  Qd6 {[%clk 0:02:26]} 18. Qc2 {[%clk 0:02:27]}  Nce7 {[%clk 0:02:14]} 19. Rc1 {[%clk 0:02:19]}  b6 {[%clk 0:02:09]} 20. Rxc8 {[%clk 0:02:16]}  Rxc8 {[%clk 0:02:09]} 21. Qb1 {[%clk 0:02:17]}  Rxc1+ {[%clk 0:01:56]} 22. Qxc1 {[%clk 0:02:18]}  g6 {[%clk 0:01:55]} 23. Nd2 {[%clk 0:02:14]}  Kg7 {[%clk 0:01:53]} 24. h4 {[%clk 0:02:01]}  Qc6 {[%clk 0:01:40]} 25. Qxc6 {[%clk 0:01:57]}  Nxc6 {[%clk 0:01:40]} 26. Kf1 {[%clk 0:01:47]}  Nde7 {[%clk 0:01:30]} 27. g3 {[%clk 0:01:37]}  Kf7 {[%clk 0:01:29]} 28. Ke1 {[%clk 0:01:34]}  Nc8 {[%clk 0:01:27]} 29. Bb5 {[%clk 0:01:21]}  N6a7 {[%clk 0:01:19]} 30. Bd3 {[%clk 0:01:07]}  Nd6 {[%clk 0:01:19]} 31. b4 {[%clk 0:00:57]}  a4 {[%clk 0:01:13]} 32. Bc2 {[%clk 0:00:40]}  b5 {[%clk 0:01:06]} 33. Bd3 {[%clk 0:00:40]}  Bd5 {[%clk 0:00:58]} 34. f4 {[%clk 0:00:40]}  Ke6 {[%clk 0:00:52]} 35. Kf2 {[%clk 0:00:39]}  Bc4 {[%clk 0:00:40]} 36. Nxc4 {[%clk 0:00:33]}  Nxc4 {[%clk 0:00:39]} 37. Bc1 {[%clk 0:00:33]}  Nd6 {[%clk 0:00:33]} 38. h5 {[%clk 0:00:30]}  e4 {[%clk 0:00:32]} 39. hxg6 {[%clk 0:00:30]}  exd3 {[%clk 0:00:24]} 40. gxh7 {[%clk 0:00:29]}  Nf7 {[%clk 0:00:25]} 41. Ke1 {[%clk 0:00:26]}  Kf5 {[%clk 0:00:23]} 42. Kd2 {[%clk 0:00:26]}  Kg6 {[%clk 0:00:19]} 43. Kxd3 {[%clk 0:00:26]}  Nc6 {[%clk 0:00:17]} 44. Ke4 {[%clk 0:00:24]}  Kxh7 {[%clk 0:00:09]} 45. Kd5 {[%clk 0:00:24]}  Ne7+ {[%clk 0:00:08]} 46. Kc5 {[%clk 0:00:24]}  Kg6 {[%clk 0:00:06]} 47. Kxb5 {[%clk 0:00:24]}  Kf5 {[%clk 0:00:07]} 48. Kxa4 {[%clk 0:00:24]}  Ke4 {[%clk 0:00:07]} 49. g4 {[%clk 0:00:23]}  Nd6 {[%clk 0:00:06]} 50. Bb2 {[%clk 0:00:23]}  Nd5 {[%clk 0:00:06]} 51. Ka5 {[%clk 0:00:20]}  Nc4+ {[%clk 0:00:06]} 52. Ka6 {[%clk 0:00:20]}  Nxb2 {[%clk 0:00:07]} 53. b5 {[%clk 0:00:20]}  Na4 {[%clk 0:00:07]} 54. g5 {[%clk 0:00:21]}  fxg5 {[%clk 0:00:03]} 55. fxg5 {[%clk 0:00:21]}  Kf5 {[%clk 0:00:04]} 56. b6 {[%clk 0:00:21]}  Ndxb6 {[%clk 0:00:03]} 57. Kb5 {[%clk 0:00:21]}  Kxg5 {[%clk 0:00:03]} 58. Kc6 {[%clk 0:00:21]}  Kf6 {[%clk 0:00:04]} 59. Kd6 {[%clk 0:00:22]}  Kf5 {[%clk 0:00:04]} 60. e4+ {[%clk 0:00:21]}  Kxe4 {[%clk 0:00:05]} 61. Ke6 {[%clk 0:00:21]}  Nd5 {[%clk 0:00:04]} 62. Kd6 {[%clk 0:00:22]}  Kd4 {[%clk 0:00:05]} 63. Ke6 {[%clk 0:00:22]}  Kc5 {[%clk 0:00:05]} 64. Ke5 {[%clk 0:00:22]}  Ndc3 {[%clk 0:00:05]} 65. Ke6 {[%clk 0:00:22]}  Nb5 {[%clk 0:00:05]} 66. Ke5 {[%clk 0:00:23]}  Nd6 {[%clk 0:00:05]} 67. Ke6 {[%clk 0:00:23]}  Kc6 {[%clk 0:00:04]} 68. Ke5 {[%clk 0:00:23]}  Nb5 {[%clk 0:00:04]} 69. Ke6 {[%clk 0:00:24]}  Kc5 {[%clk 0:00:05]} 70. Ke5 {[%clk 0:00:24]}  Kc4 {[%clk 0:00:05]} 71. Ke4 {[%clk 0:00:25]}  Nc5+ {[%clk 0:00:06]} 72. Ke5 {[%clk 0:00:25]}  Nd3+ {[%clk 0:00:05]} 73. Ke4 {[%clk 0:00:24]}  Nd6+ {[%clk 0:00:05]} 74. Ke3 {[%clk 0:00:21]}  Nf5+ {[%clk 0:00:05]} 75. Ke4 {[%clk 0:00:21]}  Nd6+ {[%clk 0:00:06]} 76. Ke3 {[%clk 0:00:21]}  Kc3 {[%clk 0:00:07]} 77. a4 {[%clk 0:00:21]}  Nc4+ {[%clk 0:00:07]} 78. Ke4 {[%clk 0:00:21]}  Na5 {[%clk 0:00:08]} 79. Kd5 {[%clk 0:00:21]}  Kb4 {[%clk 0:00:08]} 80. Kd4 {[%clk 0:00:21]}  Nc5 {[%clk 0:00:09]} 81. Kd5 {[%clk 0:00:21]}  Na6 {[%clk 0:00:07]} 82. Kd4 {[%clk 0:00:21]}  Nb3+ {[%clk 0:00:06]} 83. Kd5 {[%clk 0:00:22]}  Ka5 {[%clk 0:00:06]} 84. Kc4 {[%clk 0:00:21]}  Nbc5 {[%clk 0:00:06]} 85. Kd5 {[%clk 0:00:21]}  Nb7 {[%clk 0:00:06]} 86. Kc6 {[%clk 0:00:21]}  Nac5 {[%clk 0:00:07]} 87. Kd5 {[%clk 0:00:22]}  Kb4 {[%clk 0:00:06]} 88. Kd4 {[%clk 0:00:21]}  Na5 {[%clk 0:00:05]} 89. Kd5 {[%clk 0:00:22]}  Nd3 {[%clk 0:00:05]} 90. Kd4 {[%clk 0:00:22]}  Nb2 {[%clk 0:00:05]} 91. Kd5 {[%clk 0:00:22]}  Nbc4 {[%clk 0:00:06]} 92. Kd4 {[%clk 0:00:22]}  Nb6 {[%clk 0:00:06]} 93. Ke5 {[%clk 0:00:23]}  Kc5 {[%clk 0:00:07]} 94. Ke6 {[%clk 0:00:23]}  Nd5 {[%clk 0:00:06]} 95. Ke5 {[%clk 0:00:23]}  Nc4+ {[%clk 0:00:05]} 96. Ke4 {[%clk 0:00:23]}  Nc3+ {[%clk 0:00:06]} 97. Kf5 {[%clk 0:00:23]}  Kd5 {[%clk 0:00:05]} 98. a5 {[%clk 0:00:24]}  Nd6+ {[%clk 0:00:06]} 99. Kf6 {[%clk 0:00:23]}  Nce4+ {[%clk 0:00:06]} 100. Ke7 {[%clk 0:00:22]}  Nf5+ {[%clk 0:00:06]} 101. Kd7 {[%clk 0:00:22]}  Nc5+ {[%clk 0:00:06]} 102. Kc7 {[%clk 0:00:22]}  Nd6 {[%clk 0:00:04]} 103. a6 {[%clk 0:00:22]}  Nb5+ {[%clk 0:00:04]} 104. Kd8 {[%clk 0:00:20]}  Kd6 {[%clk 0:00:04]} 105. a7 {[%clk 0:00:20]}  Ne6+ {[%clk 0:00:04]} 106. Kc8 {[%clk 0:00:18]}  Nxa7+ {[%clk 0:00:02]} 1/2-1/2


[Site "https://www.chess.com"]

[Event "Titled Tuesday Blitz November 08 Early 2022"]
[White "Hernandez Gonzalez, William"]
[Black "Tari, Aryan"]
[WhiteFideId "3509915"]
[BlackFideId "1510045"]
[WhiteElo "2374"]
[BlackElo "2612"]
[Result "0-1"]
[Round "02"]
[TimeControl "180+1"]
[Date "2022.11.08"]
[WhiteClock "0:00:04"]
[BlackClock "0:00:14"]

1. e4 {[%clk 0:02:59]}  c6 {[%clk 0:02:59]} 2. d4 {[%clk 0:02:52]}  d5 {[%clk 0:03:00]} 3. exd5 {[%clk 0:02:51]}  cxd5 {[%clk 0:03:00]} 4. Bd3 {[%clk 0:02:52]}  Nf6 {[%clk 0:02:55]} 5. c3 {[%clk 0:02:49]}  Bg4 {[%clk 0:02:56]} 6. Nf3 {[%clk 0:02:42]}  e6 {[%clk 0:02:49]} 7. h3 {[%clk 0:02:41]}  Bh5 {[%clk 0:02:49]} 8. Bf4 {[%clk 0:02:40]}  Bd6 {[%clk 0:02:48]} 9. Bxd6 {[%clk 0:02:40]}  Qxd6 {[%clk 0:02:49]} 10. O-O {[%clk 0:02:39]}  O-O {[%clk 0:02:48]} 11. Nbd2 {[%clk 0:02:39]}  Nbd7 {[%clk 0:02:45]} 12. Re1 {[%clk 0:02:38]}  a6 {[%clk 0:02:42]} 13. a4 {[%clk 0:02:37]}  Bg6 {[%clk 0:02:35]} 14. Bxg6 {[%clk 0:02:34]}  hxg6 {[%clk 0:02:36]} 15. Ne5 {[%clk 0:02:31]}  Qc7 {[%clk 0:02:35]} 16. Ndf3 {[%clk 0:02:26]}  b5 {[%clk 0:02:32]} 17. Ng5 {[%clk 0:02:18]}  Nxe5 {[%clk 0:02:11]} 18. dxe5 {[%clk 0:02:16]}  Nd7 {[%clk 0:02:03]} 19. Qg4 {[%clk 0:02:01]}  Rfb8 {[%clk 0:01:58]} 20. Qh4 {[%clk 0:01:53]}  Nf8 {[%clk 0:01:58]} 21. axb5 {[%clk 0:01:49]}  axb5 {[%clk 0:01:57]} 22. Qf4 {[%clk 0:01:45]}  Rxa1 {[%clk 0:01:24]} 23. Rxa1 {[%clk 0:01:44]}  f6 {[%clk 0:01:22]} 24. Nf3 {[%clk 0:01:36]}  g5 {[%clk 0:01:20]} 25. Qe3 {[%clk 0:01:33]}  b4 {[%clk 0:01:09]} 26. Ra7 {[%clk 0:01:30]}  Qb6 {[%clk 0:01:08]} 27. Rxg7+ {[%clk 0:00:39]}  Kxg7 {[%clk 0:01:04]} 28. exf6+ {[%clk 0:00:39]}  Kh8 {[%clk 0:00:39]} 29. Qxg5 {[%clk 0:00:37]}  Qc7 {[%clk 0:00:39]} 30. Ne5 {[%clk 0:00:32]}  Qh7 {[%clk 0:00:33]} 31. f7 {[%clk 0:00:17]}  bxc3 {[%clk 0:00:28]} 32. bxc3 {[%clk 0:00:18]}  Qg7 {[%clk 0:00:25]} 33. Qh4+ {[%clk 0:00:18]}  Nh7 {[%clk 0:00:25]} 34. Qf4 {[%clk 0:00:12]}  Rf8 {[%clk 0:00:24]} 35. h4 {[%clk 0:00:10]}  Qf6 {[%clk 0:00:20]} 36. Qg3 {[%clk 0:00:08]}  Rxf7 {[%clk 0:00:18]} 37. Nxf7+ {[%clk 0:00:06]}  Qxf7 {[%clk 0:00:18]} 38. Qb8+ {[%clk 0:00:06]}  Kg7 {[%clk 0:00:18]} 39. Qe5+ {[%clk 0:00:07]}  Qf6 {[%clk 0:00:19]} 40. Qg3+ {[%clk 0:00:07]}  Kh6 {[%clk 0:00:16]} 41. Qe3+ {[%clk 0:00:07]}  Kg6 {[%clk 0:00:17]} 42. Qg3+ {[%clk 0:00:07]}  Kf7 {[%clk 0:00:17]} 43. Qc7+ {[%clk 0:00:08]}  Qe7 {[%clk 0:00:18]} 44. Qf4+ {[%clk 0:00:08]}  Kg7 {[%clk 0:00:18]} 45. Qg3+ {[%clk 0:00:08]}  Kh8 {[%clk 0:00:17]} 46. Qe5+ {[%clk 0:00:08]}  Kg8 {[%clk 0:00:17]} 47. Qg3+ {[%clk 0:00:08]}  Qg7 {[%clk 0:00:17]} 48. Qb8+ {[%clk 0:00:08]}  Nf8 {[%clk 0:00:18]} 49. Qb4 {[%clk 0:00:07]}  Ng6 {[%clk 0:00:14]} 50. Qb8+ {[%clk 0:00:07]}  Kh7 {[%clk 0:00:15]} 51. h5 {[%clk 0:00:06]}  Nh4 {[%clk 0:00:14]} 52. Qh2 {[%clk 0:00:04]}  Nf3+ {[%clk 0:00:14]} 0-1


[Site "https://www.chess.com"]

[Event "Titled Tuesday Blitz November 08 Early 2022"]
[White "Hon, Eric"]
[Black "Jean Louis, Marckens"]
[WhiteFideId "2097117"]
[BlackFideId "11900270"]
[WhiteElo "1918"]
[BlackElo "2030"]
[Result "0-1"]
[Round "02"]
[TimeControl "180+1"]
[Date "2022.11.09"]
[WhiteClock "0:00:15"]
[BlackClock "0:02:29"]

1. e4 {[%clk 0:00:17]}  c6 {[%clk 0:02:58]} 2. d4 {[%clk 0:00:17]}  d5 {[%clk 0:02:58]} 3. f3 {[%clk 0:00:17]}  Nf6 {[%clk 0:02:58]} 4. e5 {[%clk 0:00:18]}  Nfd7 {[%clk 0:02:58]} 5. f4 {[%clk 0:00:19]}  e6 {[%clk 0:02:58]} 6. Nf3 {[%clk 0:00:19]}  c5 {[%clk 0:02:58]} 7. c3 {[%clk 0:00:20]}  Nc6 {[%clk 0:02:58]} 8. Be2 {[%clk 0:00:20]}  cxd4 {[%clk 0:02:59]} 9. cxd4 {[%clk 0:00:21]}  a5 {[%clk 0:02:49]} 10. O-O {[%clk 0:00:21]}  a4 {[%clk 0:02:49]} 11. Nc3 {[%clk 0:00:22]}  Be7 {[%clk 0:02:48]} 12. Be3 {[%clk 0:00:22]}  O-O {[%clk 0:02:48]} 13. Rc1 {[%clk 0:00:23]}  a3 {[%clk 0:02:47]} 14. b3 {[%clk 0:00:23]}  Nb4 {[%clk 0:02:47]} 15. Qd2 {[%clk 0:00:23]}  Nb8 {[%clk 0:02:44]} 16. Nb5 {[%clk 0:00:23]}  N8c6 {[%clk 0:02:44]} 17. Ne1 {[%clk 0:00:22]}  Bd7 {[%clk 0:02:36]} 18. Nd3 {[%clk 0:00:21]}  Nxd3 {[%clk 0:02:36]} 19. Bxd3 {[%clk 0:00:22]}  Nb4 {[%clk 0:02:35]} 20. Bb1 {[%clk 0:00:21]}  Bxb5 {[%clk 0:02:33]} 21. Rf3 {[%clk 0:00:21]}  Rc8 {[%clk 0:02:31]} 22. Rh3 {[%clk 0:00:19]}  g6 {[%clk 0:02:31]} 23. f5 {[%clk 0:00:16]}  Rxc1+ {[%clk 0:02:31]} 24. Qxc1 {[%clk 0:00:16]}  exf5 {[%clk 0:02:31]} 25. Bh6 {[%clk 0:00:16]}  Qc8 {[%clk 0:02:30]} 26. Qf1 {[%clk 0:00:15]}  Bxf1 {[%clk 0:02:29]} 0-1


[Site "https://www.chess.com"]

[Event "Titled Tuesday Blitz November 08 Early 2022"]
[White "Ibadov, Dashgyn"]
[Black "Onslow, Alfie"]
[WhiteFideId "24107514"]
[BlackFideId "436976"]
[WhiteElo "2208"]
[BlackElo "2015"]
[Result "1-0"]
[Round "02"]
[TimeControl "180+1"]
[Date "2022.11.09"]
[WhiteClock "0:01:49"]
[BlackClock "0:01:08"]

1. d4 {[%clk 0:03:00]}  Nf6 {[%clk 0:02:59]} 2. c4 {[%clk 0:02:59]}  c5 {[%clk 0:02:55]} 3. d5 {[%clk 0:02:59]}  b5 {[%clk 0:02:54]} 4. cxb5 {[%clk 0:02:59]}  a6 {[%clk 0:02:54]} 5. e3 {[%clk 0:02:59]}  axb5 {[%clk 0:02:50]} 6. Bxb5 {[%clk 0:02:59]}  Ba6 {[%clk 0:02:50]} 7. Nc3 {[%clk 0:02:57]}  Qa5 {[%clk 0:02:48]} 8. Bxa6 {[%clk 0:02:56]}  Qxa6 {[%clk 0:02:48]} 9. Nge2 {[%clk 0:02:55]}  g6 {[%clk 0:02:48]} 10. O-O {[%clk 0:02:55]}  Bg7 {[%clk 0:02:49]} 11. a4 {[%clk 0:02:54]}  d6 {[%clk 0:02:44]} 12. Nb5 {[%clk 0:02:53]}  Qb6 {[%clk 0:02:36]} 13. Nec3 {[%clk 0:02:53]}  O-O {[%clk 0:02:36]} 14. e4 {[%clk 0:02:53]}  Na6 {[%clk 0:02:33]} 15. Be3 {[%clk 0:02:49]}  Nb4 {[%clk 0:02:32]} 16. Qd2 {[%clk 0:02:45]}  Nd7 {[%clk 0:02:31]} 17. Bh6 {[%clk 0:02:39]}  Ne5 {[%clk 0:02:17]} 18. Bxg7 {[%clk 0:02:38]}  Kxg7 {[%clk 0:02:18]} 19. Kh1 {[%clk 0:02:36]}  Nc4 {[%clk 0:02:16]} 20. Qe2 {[%clk 0:02:35]}  Na5 {[%clk 0:02:14]} 21. f4 {[%clk 0:02:27]}  Nb3 {[%clk 0:02:11]} 22. Rae1 {[%clk 0:02:27]}  Nd4 {[%clk 0:02:11]} 23. Qd2 {[%clk 0:02:20]}  Nxb5 {[%clk 0:02:10]} 24. axb5 {[%clk 0:02:19]}  c4 {[%clk 0:01:59]} 25. e5 {[%clk 0:02:14]}  Qc5 {[%clk 0:01:57]} 26. exd6 {[%clk 0:02:07]}  exd6 {[%clk 0:01:58]} 27. f5 {[%clk 0:02:05]}  f6 {[%clk 0:01:21]} 28. Re7+ {[%clk 0:01:57]}  Rf7 {[%clk 0:01:21]} 29. Rxf7+ {[%clk 0:01:57]}  Kxf7 {[%clk 0:01:22]} 30. Qh6 {[%clk 0:01:53]}  Rg8 {[%clk 0:01:08]} 31. Qxh7+ {[%clk 0:01:51]}  Rg7 {[%clk 0:01:08]} 32. fxg6+ {[%clk 0:01:51]}  Kf8 {[%clk 0:01:08]} 33. Qh8+ {[%clk 0:01:49]} 1-0


[Site "https://www.chess.com"]

[Event "Titled Tuesday Blitz November 08 Early 2022"]
[White "Ivic, Velimir"]
[Black "Manukian, Artak"]
[WhiteFideId "950122"]
[BlackFideId "13301373"]
[WhiteElo "2625"]
[BlackElo "2130"]
[Result "1-0"]
[Round "02"]
[TimeControl "180+1"]
[Date "2022.11.09"]
[WhiteClock "0:02:19"]
[BlackClock "0:00:41"]

1. e4 {[%clk 0:03:00]}  c6 {[%clk 0:03:00]} 2. Nc3 {[%clk 0:03:00]}  d5 {[%clk 0:03:00]} 3. Nf3 {[%clk 0:03:01]}  dxe4 {[%clk 0:02:57]} 4. Nxe4 {[%clk 0:03:02]}  Nf6 {[%clk 0:02:58]} 5. Qe2 {[%clk 0:03:02]}  Nxe4 {[%clk 0:02:58]} 6. Qxe4 {[%clk 0:03:03]}  Nd7 {[%clk 0:02:51]} 7. d4 {[%clk 0:03:03]}  Nf6 {[%clk 0:02:51]} 8. Qd3 {[%clk 0:03:04]}  Qa5+ {[%clk 0:02:49]} 9. Bd2 {[%clk 0:03:03]}  Qf5 {[%clk 0:02:49]} 10. Qb3 {[%clk 0:03:01]}  Qe4+ {[%clk 0:02:33]} 11. Be2 {[%clk 0:02:59]}  e6 {[%clk 0:02:28]} 12. c4 {[%clk 0:02:44]}  Bd6 {[%clk 0:02:19]} 13. O-O {[%clk 0:02:44]}  O-O {[%clk 0:02:13]} 14. h3 {[%clk 0:02:40]}  Bf4 {[%clk 0:01:53]} 15. Bd3 {[%clk 0:02:38]}  Qxf3 {[%clk 0:01:43]} 16. gxf3 {[%clk 0:02:39]}  Bxd2 {[%clk 0:01:43]} 17. Qc2 {[%clk 0:02:36]}  Bg5 {[%clk 0:01:41]} 18. Rad1 {[%clk 0:02:36]}  g6 {[%clk 0:01:39]} 19. Be4 {[%clk 0:02:32]}  Nh5 {[%clk 0:01:37]} 20. Kh2 {[%clk 0:02:26]}  Bf4+ {[%clk 0:01:32]} 21. Kh1 {[%clk 0:02:26]}  e5 {[%clk 0:01:31]} 22. d5 {[%clk 0:02:25]}  Bxh3 {[%clk 0:01:30]} 23. dxc6 {[%clk 0:02:25]}  bxc6 {[%clk 0:01:27]} 24. Bxc6 {[%clk 0:02:26]}  Rac8 {[%clk 0:01:22]} 25. Bd7 {[%clk 0:02:26]}  Bxd7 {[%clk 0:01:12]} 26. Rxd7 {[%clk 0:02:27]}  Rc6 {[%clk 0:01:01]} 27. Rfd1 {[%clk 0:02:24]}  Rf6 {[%clk 0:01:00]} 28. c5 {[%clk 0:02:20]}  Ng7 {[%clk 0:00:57]} 29. c6 {[%clk 0:02:20]}  Rf5 {[%clk 0:00:47]} 30. c7 {[%clk 0:02:19]}  Rh5+ {[%clk 0:00:47]} 31. Kg2 {[%clk 0:02:20]}  Nf5 {[%clk 0:00:43]} 32. c8=Q {[%clk 0:02:19]}  Nh4+ {[%clk 0:00:43]} 33. Kf1 {[%clk 0:02:19]}  Nxf3 {[%clk 0:00:43]} 34. Rd8 {[%clk 0:02:19]}  Rh1+ {[%clk 0:00:42]} 35. Ke2 {[%clk 0:02:19]}  Nd4+ {[%clk 0:00:41]} 36. R1xd4 {[%clk 0:02:19]} 1-0


[Site "https://www.chess.com"]

[Event "Titled Tuesday Blitz November 08 Early 2022"]
[White "Jaskolka, Tomasz"]
[Black "Napoli, Nicolo"]
[WhiteFideId "1170791"]
[BlackFideId "813702"]
[WhiteElo "2126"]
[BlackElo "2311"]
[Result "1-0"]
[Round "02"]
[TimeControl "180+1"]
[Date "2022.11.09"]
[WhiteClock "0:00:21"]
[BlackClock "0:00:46"]

1. d4 {[%clk 0:03:00]}  c5 {[%clk 0:03:00]} 2. d5 {[%clk 0:03:00]}  g6 {[%clk 0:02:54]} 3. c4 {[%clk 0:03:00]}  Bg7 {[%clk 0:02:54]} 4. Nc3 {[%clk 0:03:00]}  Bxc3+ {[%clk 0:02:48]} 5. bxc3 {[%clk 0:03:00]}  f5 {[%clk 0:02:49]} 6. e4 {[%clk 0:02:58]}  fxe4 {[%clk 0:02:48]} 7. f3 {[%clk 0:02:58]}  Nf6 {[%clk 0:02:47]} 8. fxe4 {[%clk 0:02:55]}  Qa5 {[%clk 0:02:47]} 9. Bb2 {[%clk 0:02:41]}  Nxe4 {[%clk 0:02:33]} 10. Qd3 {[%clk 0:02:39]}  Nf6 {[%clk 0:02:31]} 11. Nf3 {[%clk 0:02:37]}  d6 {[%clk 0:02:32]} 12. Be2 {[%clk 0:02:35]}  Bf5 {[%clk 0:02:26]} 13. Qe3 {[%clk 0:02:35]}  Ng4 {[%clk 0:02:11]} 14. Qf4 {[%clk 0:01:58]}  O-O {[%clk 0:02:09]} 15. h3 {[%clk 0:01:56]}  Bd7 {[%clk 0:01:48]} 16. Qg5 {[%clk 0:01:53]}  Nf6 {[%clk 0:01:48]} 17. O-O {[%clk 0:01:52]}  Na6 {[%clk 0:01:47]} 18. Qh6 {[%clk 0:01:36]}  Rf7 {[%clk 0:01:37]} 19. Ng5 {[%clk 0:01:31]}  Rg7 {[%clk 0:01:37]} 20. Bd3 {[%clk 0:01:30]}  Rf8 {[%clk 0:01:29]} 21. Rae1 {[%clk 0:00:59]}  Nc7 {[%clk 0:01:21]} 22. Re2 {[%clk 0:00:51]}  b5 {[%clk 0:01:19]} 23. Rfe1 {[%clk 0:00:50]}  bxc4 {[%clk 0:01:19]} 24. Rxe7 {[%clk 0:00:43]}  Rff7 {[%clk 0:00:57]} 25. Nxf7 {[%clk 0:00:40]}  Rxf7 {[%clk 0:00:58]} 26. Rxf7 {[%clk 0:00:33]}  Kxf7 {[%clk 0:00:59]} 27. Bxc4 {[%clk 0:00:29]}  Bb5 {[%clk 0:00:57]} 28. Qe3 {[%clk 0:00:25]}  Bxc4 {[%clk 0:00:53]} 29. Qe7+ {[%clk 0:00:24]}  Kg8 {[%clk 0:00:53]} 30. Qxf6 {[%clk 0:00:25]}  Bxd5 {[%clk 0:00:46]} 31. Re7 {[%clk 0:00:21]} 1-0


[Site "https://www.chess.com"]

[Event "Titled Tuesday Blitz November 08 Early 2022"]
[White "Jones, Gawain C B"]
[Black "Besedes, Danilo"]
[WhiteFideId "409561"]
[BlackFideId "946796"]
[WhiteElo "2657"]
[BlackElo "2352"]
[Result "1-0"]
[Round "02"]
[TimeControl "180+1"]
[Date "2022.11.08"]
[WhiteClock "0:00:20"]
[BlackClock "0:00:04"]

1. Nf3 {[%clk 0:03:00]}  d6 {[%clk 0:02:59]} 2. d4 {[%clk 0:03:00]}  Nf6 {[%clk 0:02:59]} 3. Nc3 {[%clk 0:03:00]}  d5 {[%clk 0:02:46]} 4. Bf4 {[%clk 0:02:58]}  c6 {[%clk 0:02:45]} 5. e3 {[%clk 0:02:58]}  Bg4 {[%clk 0:02:45]} 6. Be2 {[%clk 0:02:52]}  Bxf3 {[%clk 0:02:43]} 7. Bxf3 {[%clk 0:02:51]}  Nbd7 {[%clk 0:02:41]} 8. g4 {[%clk 0:02:50]}  e6 {[%clk 0:02:30]} 9. g5 {[%clk 0:02:50]}  Ng8 {[%clk 0:02:30]} 10. h4 {[%clk 0:02:43]}  Bb4 {[%clk 0:02:29]} 11. h5 {[%clk 0:02:36]}  h6 {[%clk 0:02:22]} 12. g6 {[%clk 0:02:34]}  f5 {[%clk 0:02:21]} 13. Qd3 {[%clk 0:02:26]}  Ngf6 {[%clk 0:02:20]} 14. a3 {[%clk 0:02:26]}  Be7 {[%clk 0:02:18]} 15. Ne2 {[%clk 0:02:16]}  O-O {[%clk 0:02:14]} 16. Bg3 {[%clk 0:02:11]}  Nb6 {[%clk 0:01:55]} 17. Nf4 {[%clk 0:02:08]}  Qd7 {[%clk 0:01:54]} 18. Qe2 {[%clk 0:01:58]}  Ne4 {[%clk 0:01:53]} 19. Bh2 {[%clk 0:01:45]}  c5 {[%clk 0:01:45]} 20. Nd3 {[%clk 0:01:41]}  c4 {[%clk 0:01:42]} 21. Ne5 {[%clk 0:01:40]}  Qb5 {[%clk 0:01:35]} 22. O-O {[%clk 0:01:09]}  Rac8 {[%clk 0:01:25]} 23. Rab1 {[%clk 0:00:57]}  Nd7 {[%clk 0:01:20]} 24. a4 {[%clk 0:00:51]}  Qxa4 {[%clk 0:00:37]} 25. b3 {[%clk 0:00:51]}  cxb3 {[%clk 0:00:20]} 26. cxb3 {[%clk 0:00:52]}  Qb4 {[%clk 0:00:19]} 27. Nxd7 {[%clk 0:00:49]}  Nc3 {[%clk 0:00:18]} 28. Qd2 {[%clk 0:00:35]}  Rfd8 {[%clk 0:00:17]} 29. Nc5 {[%clk 0:00:34]}  b6 {[%clk 0:00:13]} 30. Nxe6 {[%clk 0:00:28]}  Re8 {[%clk 0:00:07]} 31. Rbc1 {[%clk 0:00:23]}  Bf6 {[%clk 0:00:04]} 32. Nf4 {[%clk 0:00:20]} 1-0


[Site "https://www.chess.com"]

[Event "Titled Tuesday Blitz November 08 Early 2022"]
[White "Khaliun, Batnasan"]
[Black "Moskvin, Anatoly"]
[WhiteFideId "4906276"]
[BlackFideId "24199990"]
[WhiteElo "1752"]
[BlackElo "2079"]
[Result "1-0"]
[Round "02"]
[TimeControl "180+1"]
[Date "2022.11.09"]
[WhiteClock "0:01:46"]
[BlackClock "0:01:48"]

1. d4 {[%clk 0:03:00]}  Nf6 {[%clk 0:02:59]} 2. c4 {[%clk 0:03:01]}  c5 {[%clk 0:03:00]} 3. g3 {[%clk 0:03:02]}  cxd4 {[%clk 0:03:00]} 4. Nf3 {[%clk 0:03:02]}  e5 {[%clk 0:02:59]} 5. Bg2 {[%clk 0:03:01]}  Nc6 {[%clk 0:02:59]} 6. O-O {[%clk 0:03:01]}  Be7 {[%clk 0:02:50]} 7. e3 {[%clk 0:02:54]}  dxe3 {[%clk 0:02:47]} 8. Bxe3 {[%clk 0:02:53]}  O-O {[%clk 0:02:44]} 9. Nc3 {[%clk 0:02:53]}  d6 {[%clk 0:02:44]} 10. b3 {[%clk 0:02:48]}  Bg4 {[%clk 0:02:38]} 11. Qc2 {[%clk 0:02:41]}  Rc8 {[%clk 0:02:22]} 12. h3 {[%clk 0:02:33]}  Be6 {[%clk 0:02:21]} 13. Rfd1 {[%clk 0:02:28]}  Qa5 {[%clk 0:02:22]} 14. a3 {[%clk 0:01:58]}  Rfd8 {[%clk 0:02:21]} 15. Ng5 {[%clk 0:01:57]}  a6 {[%clk 0:01:53]} 16. Nd5 {[%clk 0:01:52]}  Bxd5 {[%clk 0:01:50]} 17. Bxd5 {[%clk 0:01:48]}  Nxd5 {[%clk 0:01:49]} 18. Qxh7+ {[%clk 0:01:46]}  Kf8 {[%clk 0:01:48]} 19. Qh8# {[%clk 0:01:46]} 1-0


[Site "https://www.chess.com"]